bitfinex/quotes_SOLUSD_20250419
["timestamp","ask_amount","ask_price","bid_price","bid_amount"]
[1745042532757,1e-08,138.28,138.21,0.063]
[1745042532955,1e-08,138.28,138.21,26.063]
[1745042533131,1e-08,138.28,138.25,26.0]
[1745042537856,1e-08,138.28,138.25,32.50983188]
[1745042544561,1e-08,138.28,138.25,26.0]
[1745042555762,1e-08,138.28,138.24,6.51028167]
[1745042556064,1e-08,138.28,138.24,32.51028167]
[1745042559381,1e-08,138.28,138.24,26.0]
[1745042570081,1e-08,138.28,138.24,32.51019026]
[1745042570591,1e-08,138.28,138.24,26.0]
[1745042572790,1e-08,138.28,138.22,32.51121348]
[1745042582004,1e-08,138.28,138.22,26.0]
[1745042582298,1e-08,138.28,138.21,0.063]
[1745042582696,2.70445325,138.27,138.21,0.063]
[1745042583398,6.50994575,138.25,138.21,0.063]
[1745042584004,2.70445325,138.24,138.21,0.063]
[1745042585295,6.50950767,138.26,138.21,0.063]
[1745042587004,1e-08,138.28,138.21,18.71264886]
[1745042587187,2.70181022,138.27,138.21,18.71264886]
[1745042587881,1e-08,138.28,138.21,18.71264886]
[1745042588101,1e-08,138.28,138.21,32.91264886]
[1745042588706,1e-08,138.28,138.22,6.5113587]
[1745042589206,2.7020171,138.27,138.22,6.5113587]
[1745042590408,6.50881977,138.28,138.22,6.5113587]
[1745042591915,2.70209441,138.27,138.22,6.5113587]
[1745042592602,9.21118448,138.27,138.22,6.5113587]
[1745042593127,6.50909007,138.27,138.22,6.5113587]
[1745042595619,1e-08,138.28,138.22,6.5113587]
[1745042596216,1e-08,138.28,138.21,0.063]
[1745042596910,2.70261837,138.27,138.21,0.063]
[1745042597310,5.40522935,138.26,138.21,0.063]
[1745042597620,6.50994575,138.25,138.21,0.063]
[1745042598424,2.70261837,138.24,138.21,0.063]
[1745042599133,22.77986694,138.28,138.21,0.063]
[1745042599323,14.2,138.27,138.21,0.063]
[1745042599508,19.60309482,138.27,138.21,0.063]
[1745042599825,18.64964886,138.26,138.21,0.063]
[1745042600416,5.40309482,138.25,138.21,0.063]
[1745042600616,8.10277191,138.25,138.21,0.063]
[1745042601120,5.40309482,138.24,138.21,0.063]
[1745042601426,6.51088765,138.23,138.21,0.063]
[1745042604830,41.43281101,138.26,138.21,0.063]
[1745042605214,73.98018552,138.26,138.21,0.063]
[1745042605411,5.39106913,138.25,138.21,0.063]
[1745042605627,2.69478438,138.24,138.21,0.063]
[1745042606533,2.69478438,138.23,138.21,0.063]
[1745042606928,6.5113587,138.22,138.21,0.063]
[1745042609236,16.27635282,138.24,138.21,0.063]
[1745042620139,42.27635282,138.24,138.21,0.063]
[1745042620441,26.0,138.22,138.21,0.063]
[1745042622946,32.5113587,138.22,138.21,0.063]
[1745042623443,6.5113587,138.22,138.21,0.063]
[1745042624443,6.51088765,138.23,138.21,0.063]
[1745042627745,22.78676948,138.24,138.21,0.063]
[1745042630854,18.64964886,138.23,138.21,0.063]
[1745042631142,26.0,138.22,138.21,0.063]
[1745042632054,35.20500646,138.22,138.21,0.063]
[1745042633033,32.5113587,138.22,138.21,0.063]
[1745042633240,67.43940431,138.22,138.18,0.063]
[1745042633728,5.38896074,138.21,138.18,0.063]
[1745042634453,6.51230101,138.2,138.18,0.063]
[1745042636258,22.79140438,138.21,138.18,0.063]
[1745042637038,18.64964886,138.2,138.18,0.063]
[1745042637245,21.34606153,138.2,138.18,0.063]
[1745042637657,2.69641267,138.2,138.18,0.063]
[1745042637954,36.99140438,138.21,138.18,0.063]
[1745042638265,6.51277227,138.19,138.18,0.063]
[1745042639667,6.51230101,138.2,138.18,0.063]
[1745042644859,9.21649071,138.19,138.18,0.063]
[1745042645263,14.62392809,138.19,138.18,0.063]
[1745042649075,9.21649071,138.19,138.18,0.063]
[1745042649276,14.62086118,138.19,138.18,0.063]
[1745042650676,44.64964886,138.18,138.16,0.063]
[1745042650873,26.0,138.18,138.16,0.063]
[1745042651073,8.10808891,138.17,138.16,0.063]
[1745042652179,14.62180389,138.17,138.16,0.063]
[1745042655581,40.62180389,138.17,138.16,1e-08]
[1745042655781,33.27145275,138.17,138.15,1e-08]
[1745042656074,40.2,138.16,138.15,1e-08]
[1745042656665,42.90371844,138.16,138.15,1e-08]
[1745042657078,48.30808891,138.16,138.15,1e-08]
[1745042658178,73.47192422,138.16,138.15,1e-08]
[1745042663366,23.41790489,138.16,138.15,1e-08]
[1745042663870,46.71418645,138.16,138.15,1e-08]
[1745042665569,20.71418645,138.16,138.15,1e-08]
[1745042667192,14.2,138.16,138.15,1e-08]
[1745042668991,20.71418645,138.16,138.15,1e-08]
[1745042675497,23.41212318,138.16,138.15,1e-08]
[1745042678001,28.80981941,138.16,138.15,1e-08]
[1745042679695,14.60981941,138.16,138.15,1e-08]
[1745042681605,14.60981941,138.16,138.09,6.51748859]
[1745042682003,9.21212318,138.16,138.09,6.51748859]
[1745042683004,6.51371498,138.17,138.09,6.51748859]
[1745042684285,6.51465798,138.15,138.09,6.51748859]
[1745042688407,41.44765131,138.17,138.09,6.51748859]
[1745042688706,41.44765131,138.17,138.08,6.55525132]
[1745042688915,2.70412864,138.16,138.08,6.55525132]
[1745042689209,8.11238593,138.16,138.08,6.55525132]
[1745042689804,6.51512957,138.14,138.08,0.03745701]
[1745042690692,6.51418645,138.16,138.08,0.03745701]
[1745042691087,5.41233034,138.15,138.08,0.03745701]
[1745042691507,2.70614719,138.14,138.08,0.03745701]
[1745042692120,9.22151159,138.14,138.08,0.03745701]
[1745042692689,6.5153644,138.14,138.08,0.03745701]
[1745042693215,6.51418645,138.16,138.08,0.03745701]
[1745042693413,2.7068178,138.15,138.08,0.03745701]
[1745042694309,14.63653696,138.14,138.08,0.03745701]
[1745042695114,9.22218153,138.14,138.08,0.03745701]
[1745042695316,22.79800245,138.17,138.08,0.03745701]
[1745042696117,5.41621948,138.16,138.08,0.03745701]
[1745042696498,6.51465798,138.15,138.08,0.03745701]
[1745042696917,5.41621948,138.14,138.08,0.03745701]
[1745042697699,22.79800245,138.17,138.08,0.03745701]
[1745042698717,6.51465798,138.15,138.08,0.03745701]
[1745042699707,8.12445748,138.14,138.08,0.03745701]
[1745042700323,6.51560124,138.13,138.08,0.03745701]
[1745042701621,22.79800245,138.17,138.08,0.03745701]
[1745042702120,5.41746621,138.16,138.08,0.03745701]
[1745042702502,2.70885429,138.15,138.08,0.03745701]
[1745042702701,6.51512957,138.14,138.08,0.03745701]
[1745042703726,22.79800245,138.17,138.08,0.03745701]
[1745042704322,2.70907278,138.16,138.08,0.03745701]
[1745042704621,5.41875373,138.15,138.08,0.03745701]
[1745042705122,9.22458327,138.14,138.08,0.03745701]
[1745042706325,22.79800245,138.17,138.08,0.03745701]
[1745042707123,8.13016476,138.16,138.08,0.03745701]
[1745042708126,6.51465798,138.15,138.08,0.03745701]
[1745042708310,8.13016476,138.14,138.08,0.03745701]
[1745042708511,13.40836027,138.14,138.08,0.03745701]
[1745042708908,5.27819551,138.13,138.08,0.03745701]
[1745042709318,8.13016476,138.12,138.08,0.03745701]
[1745042709727,14.6462693,138.12,138.08,0.03745701]
[1745042710132,5.27819551,138.11,138.08,0.03745701]
[1745042711327,22.80130293,138.15,138.08,0.03745701]
[1745042711832,5.41706284,138.14,138.08,0.03745701]
[1745042712411,6.51607298,138.12,138.08,0.03745701]
[1745042713235,5.27385508,138.11,138.08,0.03745701]
[1745042714818,6.51748859,138.09,138.08,0.03745701]
[1745042716117,11.79134367,138.09,138.08,0.03745701]
[1745042717035,41.45260237,138.14,138.08,0.03745701]
[1745042717724,26.0,138.11,138.08,0.03745701]
[1745042720237,6.51701665,138.1,138.08,0.03745701]
[1745042724521,11.78093597,138.09,138.08,0.03745701]
[1745042727142,6.51701665,138.1,138.08,0.03745701]
[1745042730928,18.64964886,138.09,138.08,0.03745701]
[1745042731431,23.90504827,138.09,138.08,0.03745701]
[1745042732435,11.772888,138.09,138.08,0.03745701]
[1745042732622,6.51748859,138.09,138.08,0.03745701]
[1745042733647,6.51701665,138.1,138.08,0.03745701]
[1745042736929,20.71656072,138.11,138.08,0.03745701]
[1745042737130,18.64964886,138.15,138.08,0.03745701]
[1745042737334,14.2,138.14,138.08,0.03745701]
[1745042737534,5.25204349,138.13,138.08,0.03745701]
[1745042738748,14.2,138.14,138.08,0.03745701]
[1745042739743,20.71530293,138.14,138.08,0.03745701]
[1745042741243,5.25333451,138.13,138.08,0.03745701]
[1745042742053,37.00312687,138.14,138.08,0.03745701]
[1745042743760,5.25500577,138.13,138.08,0.03745701]
[1745042744256,6.51607298,138.12,138.08,0.03745701]
[1745042745953,5.25682109,138.11,138.08,0.03745701]
[1745042746972,16.29018245,138.12,138.08,0.03745701]
[1745042748955,5.25918183,138.11,138.08,0.03745701]
[1745042749166,6.51701665,138.1,138.08,0.03745701]
[1745042750360,25.1652501,138.13,138.08,0.03745701]
[1745042750564,6.51560124,138.13,138.08,0.03745701]
[1745042750761,7.96307753,138.12,138.08,0.03745701]
[1745042751265,6.51654478,138.11,138.08,0.03745701]
[1745042752865,6.51560124,138.13,138.08,0.03745701]
[1745042753668,5.40794034,138.12,138.08,0.03745701]
[1745042753862,2.70397042,138.11,138.08,0.03745701]
[1745042754063,14.48592359,138.11,138.08,0.03745701]
[1745042754770,11.78195317,138.11,138.08,0.03745701]
[1745042754950,6.51560124,138.13,138.08,0.03745701]
[1745042755672,2.70412288,138.12,138.08,0.03745701]
[1745042756670,6.51560124,138.13,138.08,0.03745701]
[1745042757054,6.51654478,138.11,138.08,0.03745701]
[1745042759574,6.51560124,138.13,138.08,0.03745701]
[1745042760073,5.40677777,138.12,138.08,0.03745701]
[1745042760650,6.51560124,138.13,138.08,0.03745701]
[1745042761168,6.51654478,138.11,138.08,0.03745701]
[1745042762071,6.51560124,138.13,138.08,0.03745701]
[1745042762864,5.40682477,138.12,138.08,0.03745701]
[1745042763475,6.51560124,138.13,138.08,0.03745701]
[1745042763876,2.70299084,138.12,138.08,0.03745701]
[1745042764071,5.26358819,138.11,138.08,0.03745701]
[1745042764273,6.51701665,138.1,138.08,0.03745701]
[1745042765075,5.26358819,138.09,138.08,0.03745701]
[1745042765574,13.36645367,138.09,138.08,0.03745701]
[1745042766371,19.88394226,138.09,138.08,0.03745701]
[1745042766975,17.18288105,138.09,138.08,0.03745701]
[1745042767575,11.78107678,138.09,138.08,0.03745701]
[1745042769576,14.48065503,138.09,138.08,0.03745701]
[1745042769878,19.8796373,138.09,138.08,0.03745701]
[1745042771778,17.18005905,138.09,138.08,0.03745701]
[1745042773478,19.87821518,138.09,138.08,0.03745701]
[1745042780579,11.78107678,138.09,138.08,0.03745701]
[1745042782378,19.87080137,138.09,138.08,0.03745701]
[1745042786197,38.52045023,138.09,138.08,0.03745701]
[1745042788194,38.52045023,138.09,138.08,1e-08]
[1745042788381,26.0,138.05,138.03,0.063]
[1745042789604,5.26358819,138.04,138.03,0.063]
[1745042790311,11.7834375,138.04,138.03,0.063]
[1745042790706,6.51984931,138.04,138.03,0.063]
[1745042790902,9.21348504,138.04,138.03,0.063]
[1745042795735,14.45354311,138.04,138.03,0.063]
[1745042797025,9.21348504,138.04,138.03,0.063]
[1745042799320,27.8631339,138.04,138.03,0.063]
[1745042801035,33.10221729,138.04,138.03,0.063]
[1745042801432,28.75256843,138.04,138.03,0.063]
[1745042802037,47.40221729,138.04,138.03,0.063]
[1745042803643,47.40221729,138.04,138.02,0.063]
[1745042803825,28.75256843,138.04,138.02,0.063]
[1745042804142,2.69363573,138.03,138.02,0.063]
[1745042805142,20.81984931,138.04,138.02,0.063]
[1745042806442,9.21074775,138.03,138.02,0.063]
[1745042814835,14.45260304,138.03,138.02,0.063]
[1745042818450,9.21074775,138.03,138.02,0.063]
[1745042819445,27.86039661,138.03,138.02,1e-08]
[1745042819852,33.24799767,138.03,138.02,1e-08]
[1745042820850,14.59834881,138.03,138.02,1e-08]
[1745042821352,19.84429604,138.03,138.02,1e-08]
[1745042825768,14.45669498,138.03,138.02,1e-08]
[1745042827663,19.848825,138.03,138.02,1e-08]
[1745042830367,38.49847386,138.03,138.02,1e-08]
[1745042833363,64.49847386,138.03,138.02,1e-08]
[1745042835573,38.49847386,138.03,138.02,1e-08]
[1745042836366,60.22847386,138.03,138.02,1e-08]
[1745042839167,38.49847386,138.03,138.02,1e-08]
[1745042839571,19.848825,138.03,138.02,1e-08]
[1745042843073,38.49847386,138.03,138.02,1e-08]
[1745042850180,60.22847386,138.03,138.02,1e-08]
[1745042864809,52.14591775,138.03,138.02,1e-08]
[1745042864990,46.89997052,138.03,138.02,1e-08]
[1745042866410,26.0,138.0,137.96,0.063]
[1745042866608,14.3,137.99,137.96,0.063]
[1745042867917,6.52268444,137.98,137.96,0.063]
[1745042881912,51.17280606,137.97,137.96,0.063]
[1745042882215,70.56105022,137.97,137.9,0.063]
[1745042882419,18.64964886,137.96,137.9,0.063]
[1745042883614,6.52410293,137.95,137.9,0.063]
[1745042883801,22.83436026,137.95,137.9,0.063]
[1745042886226,16.31025733,137.95,137.9,0.063]
[1745042886818,6.52363003,137.96,137.9,0.063]
[1745042887919,6.5231572,137.97,137.9,0.063]
[1745042890023,22.83105022,137.97,137.9,0.063]
[1745042893730,44.56105022,137.97,137.9,0.063]
[1745042893904,22.83105022,137.97,137.9,0.063]
[1745042894110,13.36797343,137.96,137.9,0.063]
[1745042895031,6.5245759,137.94,137.9,0.063]
[1745042895328,5.40991995,137.93,137.9,0.063]
[1745042895623,10.66301346,137.93,137.9,0.063]
[1745042895929,5.25309351,137.93,137.9,0.063]
[1745042896118,11.77848234,137.93,137.9,0.063]
[1745042896318,6.52538883,137.93,137.9,0.063]
[1745042898733,26.0,137.95,137.9,0.063]
[1745042899224,5.23278509,137.94,137.9,0.063]
[1745042899412,2.6938713,137.93,137.9,0.063]
[1745042899817,5.23278509,137.94,137.9,0.063]
[1745042900532,26.0,137.96,137.9,0.063]
[1745042900935,6.5245759,137.94,137.9,0.063]
[1745042902034,48.83436026,137.95,137.9,0.063]
[1745042902619,5.39004867,137.94,137.9,0.063]
[1745042902835,8.085073,137.94,137.9,0.063]
[1745042903436,2.69502433,137.94,137.9,0.063]
[1745042903738,9.22007326,137.93,137.9,0.063]
[1745042904236,6.52504893,137.93,137.9,0.063]
[1745042905540,22.83601565,137.94,137.9,0.063]
[1745042905922,2.69705707,137.93,137.9,0.063]
[1745042906122,7.93488962,137.93,137.9,0.063]
[1745042906641,6.52552204,137.92,137.9,0.063]
[1745042908342,5.25378599,137.91,137.9,0.063]
[1745042908928,13.36966857,137.91,137.9,0.063]
[1745042909129,19.89566378,137.91,137.9,0.063]
[1745042911848,14.4850767,137.91,137.9,0.063]
[1745042912063,9.23129071,137.91,137.9,0.063]
[1745042912249,2.7052955,137.91,137.9,0.063]
[1745042913345,8.11805897,137.91,137.9,0.063]
[1745042914330,2.7052955,137.91,137.9,0.063]
[1745042915351,7.96146076,137.91,137.9,0.063]
[1745042916341,6.52484676,137.94,137.9,0.063]
[1745042917353,2.70556356,137.93,137.9,0.063]
[1745042918152,6.52363003,137.96,137.9,0.063]
[1745042918542,5.41029595,137.95,137.9,0.063]
[1745042918843,7.95860595,137.94,137.9,0.063]
[1745042920158,6.52483656,137.94,137.9,0.063]
[1745042920332,6.52363003,137.96,137.9,0.063]
[1745042921250,19.88734985,137.95,137.9,0.063]
[1745042921438,13.36317257,137.95,137.9,0.063]
[1745042921638,17.18336589,137.95,137.9,0.063]
[1745042921838,11.77524918,137.95,137.9,0.063]
[1745042922453,6.52415389,137.95,137.9,0.063]
[1745042922843,6.52363003,137.96,137.9,0.063]
[1745042923048,2.70235085,137.95,137.9,0.063]
[1745042924259,6.52363003,137.96,137.9,0.063]
[1745042926559,16.30390461,138.01,137.92,18.64964886]
[1745042926956,5.40093014,138.0,137.92,18.64964886]
[1745042927142,8.1015818,138.0,137.92,18.64964886]
[1745042927564,6.52221175,137.99,137.93,6.52504893]
[1745042928764,16.30390461,138.01,137.93,6.52504893]
[1745042928765,22.82517118,138.01,137.93,6.52504893]
[1745042929060,5.39583843,138.0,137.93,6.52504893]
[1745042929761,5.39583843,138.0,137.91,26.0]
[1745042929958,2.69662646,137.99,137.91,26.0]
[1745042930161,8.09246489,137.99,137.91,26.0]
[1745042930543,2.69662646,137.99,137.91,26.0]
[1745042930747,11.75860202,137.98,137.91,32.52587633]
[1745042931864,22.82517118,138.01,137.91,32.52587633]
[1745042932064,2.69608772,138.0,137.91,32.52587633]
[1745042932563,10.62736708,137.99,137.91,32.52587633]
[1745042933264,6.52268444,137.98,137.91,32.52587633]
[1745042934960,22.82517118,138.01,137.91,32.52587633]
[1745042949591,6.52221175,137.99,137.91,32.52587633]
[1745042953681,6.52221175,137.99,137.92,18.64964886]
[1745042955383,6.52221175,137.99,137.93,6.52504893]
[1745042969992,16.30390461,138.01,137.93,6.52504893]
[1745042969993,6.52126657,138.01,137.93,6.52504893]
[1745042970195,6.52126657,138.01,137.95,18.64964886]
[1745042971391,0.03,138.02,137.96,6.52363003]
[1745042975595,0.03,138.02,137.96,22.83270512]
[1745042976892,0.03,138.02,137.95,6.52410293]
[1745042977096,0.03,138.02,137.95,25.17375179]
[1745042977899,0.03,138.02,137.95,6.52410293]
[1745042978100,0.03,138.02,137.95,25.17375179]
[1745042980900,0.03,138.02,137.94,46.74447764]
[1745042987597,0.03,138.02,137.98,26.0]
[1745042988706,0.03,138.02,137.99,6.52221175]
[1745042988907,0.03,138.02,137.97,6.5231572]
[1745042990006,0.03,138.02,137.98,18.64964886]
[1745042991311,0.03,138.02,137.98,25.17186387]
[1745042991991,0.03,138.02,137.99,26.0]
[1745042994003,0.03,138.02,137.99,6.5219562]
[1745043002507,0.03,138.02,137.98,51.17217917]
[1745043027531,0.03,138.02,137.98,67.47889028]
[1745043030934,0.03,138.02,138.01,44.64964886]
[1745043031334,0.03,138.02,138.01,58.84964886]
[1745043032145,0.03,138.02,138.01,65.37091543]
[1745043040640,0.03,138.06,138.05,44.64964886]
[1745043041841,0.03,138.06,138.05,51.16902589]
[1745043045443,0.03,138.06,138.05,26.0]
[1745043047751,0.03,138.06,138.05,32.51937703]
[1745043057456,0.03,138.06,138.05,26.0]
[1745043057851,0.03,138.06,138.05,32.51937703]
[1745043060358,0.03,138.06,138.05,51.16902589]
[1745043062171,0.03,138.06,138.05,26.0]
[1745043062758,0.03,138.06,138.05,32.51937703]
[1745043067455,0.03,138.06,138.05,51.16902589]
[1745043071967,0.03,138.12,138.05,51.16902589]
[1745043071968,0.03,138.12,138.09,46.24934886]
[1745043072168,0.03,138.14,138.13,18.64964886]
[1745043073362,0.03,138.14,138.13,25.1652501]
[1745043075662,0.03,138.15,138.13,25.1652501]
[1745043075875,1e-08,138.15,138.13,32.79621289]
[1745043077786,1e-08,138.15,138.13,42.58871431]
[1745043079887,1e-08,138.15,138.13,32.79621289]
[1745043081766,1e-08,138.15,138.13,25.1652501]
[1745043081967,1e-08,138.15,138.11,6.51654478]
[1745043085381,1e-08,138.15,138.1,65.34649271]
[1745043085763,1e-08,138.15,138.1,40.18]
[1745043086473,1e-08,138.15,138.1,26.0]
[1745043086989,1e-08,138.15,138.08,6.51789015]
[1745043099097,1e-08,138.15,138.07,51.16790179]
[1745043103695,1e-08,138.15,138.07,67.46398348]
[1745043103999,1e-08,138.15,138.09,18.64964886]
[1745043105901,1e-08,138.15,138.11,18.64964886]
[1745043107223,1e-08,138.15,138.12,6.51607298]
[1745043107710,1e-08,138.15,138.08,6.4009]
[1745043108009,1.6408,138.14,138.06,14.18]
[1745043108188,7.7926,138.14,138.06,40.18]
[1745043108815,7.7926,138.14,138.06,46.69882515]
[1745043109108,6.51560124,138.13,138.06,46.69882515]
[1745043111108,14.3078651,138.14,138.07,18.64964886]
[1745043111901,8.1560651,138.14,138.07,18.64964886]
[1745043112205,1.6408,138.14,138.07,18.64964886]
[1745043112807,1.6408,138.14,138.09,18.64964886]
[1745043112992,1e-08,138.15,138.09,44.64964886]
[1745043115509,1e-08,138.15,138.1,6.51701665]
[1745043116725,1e-08,138.15,138.09,32.51736673]
[1745043118321,1e-08,138.15,138.09,26.0]
[1745043118501,1e-08,138.15,138.08,6.51776552]
[1745043122114,1e-08,138.15,138.07,32.51834845]
[1745043123214,1e-08,138.15,138.07,26.0]
[1745043123514,5.38273284,138.14,138.07,26.0]
[1745043124216,6.51560124,138.13,138.07,26.0]
[1745043124415,6.51560124,138.13,138.02,0.063]
[1745043124416,26.0,138.08,138.02,0.063]
[1745043124925,5.38273284,138.07,138.02,0.063]
[1745043125600,5.38273284,138.06,138.02,0.063]
[1745043126511,26.0,138.08,138.02,0.063]
[1745043126512,6.51937703,138.05,138.02,0.063]
[1745043126911,26.0,138.03,138.02,0.063]
[1745043127304,5.38007079,138.03,138.02,0.063]
[1745043127625,31.38007079,138.03,138.02,0.063]
[1745043128130,24.02971965,138.03,138.01,1e-08]
[1745043128323,26.0,138.0,137.97,0.063]
[1745043128626,6.52221175,137.99,137.97,0.063]
[1745043130119,32.52079408,138.02,137.97,0.063]
[1745043132722,6.52079408,138.02,137.97,0.063]
[1745043135731,6.52032166,138.03,137.97,0.063]
[1745043140926,22.82112583,138.03,137.97,0.063]
[1745043141321,26.0,138.0,137.97,0.063]
[1745043143521,32.52208247,138.0,137.97,0.063]
[1745043146723,16.30080417,138.03,137.97,0.063]
[1745043146910,26.0,138.02,137.97,0.063]
[1745043148831,6.52126657,138.01,137.97,0.063]
[1745043152933,6.52032166,138.03,137.97,0.063]
[1745043153127,32.52032166,138.03,137.97,0.063]
[1745043154232,48.82112583,138.03,137.97,0.063]
[1745043164140,6.52126657,138.01,137.97,0.063]
[1745043165143,6.52079408,138.02,137.97,0.063]
[1745043165944,5.34309532,138.01,137.97,0.063]
[1745043167653,6.52173913,138.0,137.97,0.063]
[1745043169848,11.89289966,137.99,137.97,0.063]
[1745043170650,6.52239003,137.99,137.97,0.063]
[1745043171245,16.30365077,138.01,137.97,0.063]
[1745043171643,5.38106089,138.0,137.97,0.063]
[1745043172448,6.52221175,137.99,137.97,0.063]
[1745043174549,6.52126657,138.01,137.97,0.063]
[1745043175948,14.28,138.02,137.97,0.063]
[1745043175949,6.52221175,137.99,137.97,0.063]
[1745043177051,6.52126657,138.01,137.97,0.063]
[1745043177552,2.69124407,138.0,137.97,0.063]
[1745043178155,5.38020181,137.99,137.97,0.063]
[1745043178353,8.07144588,137.99,137.97,0.063]
[1745043178855,6.52194376,138.0,137.97,0.063]
[1745043180258,11.90278368,137.99,137.97,0.063]
[1745043180959,6.5223295,137.99,137.97,0.063]
[1745043181860,6.52126657,138.01,137.97,0.063]
[1745043182051,2.69053889,138.0,137.97,0.063]
[1745043182962,6.52126657,138.01,137.97,0.063]
[1745043186861,6.52079408,138.02,137.97,0.063]
[1745043187442,2.6900294,138.01,137.97,0.063]
[1745043188063,6.52134392,138.01,137.97,0.063]
[1745043188463,5.37883472,138.0,137.97,0.063]
[1745043189165,6.52134392,138.01,137.97,0.063]
[1745043189469,6.52079408,138.02,137.97,0.063]
[1745043189860,2.68923185,138.01,137.97,0.063]
[1745043191267,9.21108269,138.0,137.97,0.063]
[1745043192369,6.52185084,138.0,137.97,0.063]
[1745043197866,22.82277929,138.02,137.97,0.063]
[1745043198069,2.69007737,138.01,137.97,0.063]
[1745043198256,8.07023211,138.01,137.97,0.063]
[1745043198770,2.69007737,138.0,137.97,0.063]
[1745043199173,6.52268444,137.98,137.97,0.063]
[1745043200162,22.82277929,138.02,137.97,0.063]
[1745043200856,2.68998197,138.01,137.97,0.063]
[1745043201269,5.37996116,138.0,137.97,0.063]
[1745043201455,2.68998197,137.99,137.97,0.063]
[1745043202173,9.21266641,137.98,137.97,0.063]
[1745043202476,14.59262757,137.98,137.97,0.063]
[1745043206150,9.21266641,137.98,137.97,0.063]
[1745043206357,14.59010511,137.98,137.97,0.063]
[1745043209473,14.59010511,137.98,137.97,1e-08]
[1745043209474,33.23975397,137.98,137.97,1e-08]
[1745043209680,44.47087564,137.98,137.97,1e-08]
[1745043219082,25.82122678,137.98,137.97,1e-08]
[1745043222585,44.47087564,137.98,137.97,1e-08]
[1745043222792,70.47087564,137.98,137.97,1e-08]
[1745043226090,51.82122678,137.98,137.97,1e-08]
[1745043228089,25.82122678,137.98,137.97,1e-08]
[1745043228293,14.59010511,137.98,137.97,1e-08]
[1745043230990,28.79010511,137.98,137.97,1e-08]
[1745043231590,47.43975397,137.98,137.97,1e-08]
[1745043231778,60.18297564,137.98,137.97,1e-08]
[1745043232593,44.64964886,137.97,137.96,1e-08]
[1745043232894,55.88077053,137.97,137.96,1e-08]
[1745043233088,61.25820923,137.97,137.96,1e-08]
[1745043233392,63.9481912,137.97,137.96,1e-08]
[1745043233794,70.4713484,137.97,137.96,1e-08]
[1745043235591,51.82169954,137.97,137.96,1e-08]
[1745043235776,70.4713484,137.97,137.96,1e-08]
[1745043236181,44.4713484,137.97,137.96,1e-08]
[1745043237576,70.4713484,137.97,137.96,1e-08]
[1745043237782,40.59057787,137.97,137.96,1e-08]
[1745043239786,14.59057787,137.97,137.96,1e-08]
[1745043241904,43.19576015,137.97,137.96,1e-08]
[1745043246509,40.59057787,137.97,137.96,1e-08]
[1745043247315,59.24022673,137.97,137.96,1e-08]
[1745043247612,44.4713484,137.97,137.96,1e-08]
[1745043252913,40.59057787,137.97,137.96,1e-08]
[1745043253114,59.24022673,137.97,137.96,1e-08]
[1745043258318,33.24022673,137.97,137.96,1e-08]
[1745043258516,44.4713484,137.97,137.96,1e-08]
[1745043258902,49.69733409,137.97,137.96,1e-08]
[1745043259312,26.0,137.94,137.93,0.04300001]
[1745043259506,28.68998197,137.94,137.93,0.04300001]
[1745043259923,33.91596766,137.94,137.93,0.04300001]
[1745043260326,45.81798226,137.94,137.93,0.04300001]
[1745043264903,19.81798226,137.94,137.93,0.04300001]
[1745043265119,45.81798226,137.94,137.93,0.04300001]
[1745043267628,40.44054356,137.94,137.93,0.04300001]
[1745043269532,45.81321026,137.94,137.93,0.04300001]
[1745043273521,19.81321026,137.94,137.93,0.04300001]
[1745043275650,13.28863436,137.94,137.93,0.04300001]
[1745043275951,7.91596766,137.94,137.93,0.04300001]
[1745043276332,2.68998197,137.94,137.93,0.04300001]
[1745043276836,6.65475438,137.96,137.93,0.04300001]
[1745043280128,5.37020524,137.95,137.93,0.04300001]
[1745043280632,11.89437244,137.95,137.93,0.04300001]
[1745043281043,5.37020524,137.94,137.93,0.04300001]
[1745043283040,6.5241672,137.95,137.93,0.04300001]